[Event "Titled Tuesday Blitz June 20 Early 2023"]
[White "Rahman, Masruri"]
[Black "Van Foreest, Machteld"]
[WhiteFideId "7101163"]
[BlackFideId "1051563"]
[WhiteElo "2256"]
[BlackElo "2018"]
[Result "0-1"]
[Round "1"]
[TimeControl "180+2"]
[Date "2023.06.20"]
[WhiteClock "0:00:00"]
[BlackClock "0:00:26"]
[Board "99"]

1. d4 {[%clk 0:02:56]}  d5 {[%clk 0:02:59]} 2. Bf4 {[%clk 0:02:52]}  Nf6 {[%clk 0:02:59]} 3. e3 {[%clk 0:02:52]}  Bf5 {[%clk 0:02:58]} 4. c4 {[%clk 0:02:51]}  e6 {[%clk 0:02:57]} 5. Nc3 {[%clk 0:02:48]}  Bd6 {[%clk 0:02:56]} 6. Bg3 {[%clk 0:02:47]}  Ne4 {[%clk 0:02:47]} 7. Nge2 {[%clk 0:02:42]}  dxc4 {[%clk 0:02:37]} 8. Nxe4 {[%clk 0:02:39]}  Bxe4 {[%clk 0:02:36]} 9. Nc3 {[%clk 0:02:34]}  Bc6 {[%clk 0:02:35]} 10. e4 {[%clk 0:02:18]}  b5 {[%clk 0:02:30]} 11. d5 {[%clk 0:02:12]}  b4 {[%clk 0:01:56]} 12. dxc6 {[%clk 0:02:07]}  bxc3 {[%clk 0:01:56]} 13. bxc3 {[%clk 0:02:08]}  Nxc6 {[%clk 0:01:52]} 14. Qa4 {[%clk 0:02:04]}  Qd7 {[%clk 0:01:32]} 15. Rd1 {[%clk 0:01:50]}  Ne5 {[%clk 0:00:57]} 16. Qa6 {[%clk 0:01:14]}  Qc6 {[%clk 0:00:39]} 17. Qxc6+ {[%clk 0:01:10]}  Nxc6 {[%clk 0:00:40]} 18. Bxc4 {[%clk 0:00:57]}  Bxg3 {[%clk 0:00:39]} 19. Bb5 {[%clk 0:00:49]}  Be5 {[%clk 0:00:24]} 20. Bxc6+ {[%clk 0:00:48]}  Ke7 {[%clk 0:00:25]} 21. Bxa8 {[%clk 0:00:22]}  Rxa8 {[%clk 0:00:26]} 22. O-O {[%clk 0:00:21]}  Bxc3 {[%clk 0:00:26]} 23. Rc1 {[%clk 0:00:21]}  Be5 {[%clk 0:00:26]} 24. Rc2 {[%clk 0:00:21]}  Rb8 {[%clk 0:00:26]} 25. f4 {[%clk 0:00:21]}  Bd4+ {[%clk 0:00:24]} 26. Kh1 {[%clk 0:00:22]}  c5 {[%clk 0:00:24]} 27. g3 {[%clk 0:00:22]}  Rb2 {[%clk 0:00:24]} 28. Rxb2 {[%clk 0:00:21]}  Bxb2 {[%clk 0:00:25]} 29. Rb1 {[%clk 0:00:21]}  Bd4 {[%clk 0:00:22]} 30. Rb7+ {[%clk 0:00:22]}  Kd6 {[%clk 0:00:22]} 31. Rxa7 {[%clk 0:00:22]}  c4 {[%clk 0:00:23]} 32. Ra4 {[%clk 0:00:20]}  Kc5 {[%clk 0:00:22]} 33. Ra8 {[%clk 0:00:20]}  c3 {[%clk 0:00:22]} 34. Rc8+ {[%clk 0:00:13]}  Kb4 {[%clk 0:00:22]} 35. Rd8 {[%clk 0:00:04]}  c2 {[%clk 0:00:20]} 36. Rxd4+ {[%clk 0:00:05]}  Kc3 {[%clk 0:00:21]} 37. Rd8 {[%clk 0:00:04]}  c1=Q+ {[%clk 0:00:21]} 38. Kg2 {[%clk 0:00:05]}  Qb2+ {[%clk 0:00:22]} 39. Kh3 {[%clk 0:00:06]}  Qxa2 {[%clk 0:00:23]} 40. Rd7 {[%clk 0:00:06]}  Qb2 {[%clk 0:00:20]} 41. Rxf7 {[%clk 0:00:05]}  Kd3 {[%clk 0:00:20]} 42. e5 {[%clk 0:00:05]}  Ke4 {[%clk 0:00:20]} 43. Rxg7 {[%clk 0:00:05]}  Kf3 {[%clk 0:00:21]} 44. Kh4 {[%clk 0:00:02]}  Qxh2+ {[%clk 0:00:21]} 45. Kg5 {[%clk 0:00:03]}  Qxg3+ {[%clk 0:00:22]} 46. Kf6 {[%clk 0:00:03]}  Qxf4+ {[%clk 0:00:22]} 47. Kxe6 {[%clk 0:00:04]}  Ke4 {[%clk 0:00:23]} 48. Rf7 {[%clk 0:00:02]}  Qxe5+ {[%clk 0:00:23]} 49. Kd7 {[%clk 0:00:03]}  Qd5+ {[%clk 0:00:23]} 50. Ke7 {[%clk 0:00:03]}  Qxf7+ {[%clk 0:00:24]} 51. Kxf7 {[%clk 0:00:04]}  h5 {[%clk 0:00:25]} 52. Kg6 {[%clk 0:00:00]}  h4 {[%clk 0:00:26]} 0-1


[Site "https://www.chess.com"]

[Event "Titled Tuesday Blitz June 20 Early 2023"]
[White "Rohith Krishna S"]
[Black "Gatterer, Florian"]
[WhiteFideId "46617051"]
[BlackFideId "811688"]
[WhiteElo "2270"]
[BlackElo "2221"]
[Result "1-0"]
[Round "1"]
[TimeControl "180+2"]
[Date "2023.06.20"]
[WhiteClock "0:01:38"]
[BlackClock "0:00:00"]
[Board "101"]

1. Nf3 {[%clk 0:02:57]}  d5 {[%clk 0:02:59]} 2. g3 {[%clk 0:02:58]}  c5 {[%clk 0:02:58]} 3. Bg2 {[%clk 0:02:58]}  Nc6 {[%clk 0:02:59]} 4. O-O {[%clk 0:02:58]}  Nf6 {[%clk 0:02:59]} 5. d3 {[%clk 0:02:59]}  e6 {[%clk 0:02:57]} 6. Nbd2 {[%clk 0:02:57]}  Be7 {[%clk 0:02:55]} 7. e4 {[%clk 0:02:58]}  O-O {[%clk 0:02:55]} 8. Re1 {[%clk 0:02:58]}  b5 {[%clk 0:02:55]} 9. e5 {[%clk 0:02:58]}  Nd7 {[%clk 0:02:55]} 10. Nf1 {[%clk 0:02:58]}  b4 {[%clk 0:02:52]} 11. h4 {[%clk 0:02:58]}  Re8 {[%clk 0:02:47]} 12. N1h2 {[%clk 0:02:57]}  a5 {[%clk 0:02:45]} 13. Bf4 {[%clk 0:02:56]}  a4 {[%clk 0:02:44]} 14. a3 {[%clk 0:02:55]}  bxa3 {[%clk 0:02:37]} 15. bxa3 {[%clk 0:02:55]}  Ba6 {[%clk 0:02:36]} 16. Ng5 {[%clk 0:02:53]}  h6 {[%clk 0:02:24]} 17. Qh5 {[%clk 0:02:51]}  hxg5 {[%clk 0:02:14]} 18. hxg5 {[%clk 0:02:52]}  g6 {[%clk 0:01:58]} 19. Qh4 {[%clk 0:02:48]}  Nd4 {[%clk 0:01:44]} 20. Ng4 {[%clk 0:02:44]}  Nf5 {[%clk 0:01:42]} 21. Nh6+ {[%clk 0:02:44]}  Nxh6 {[%clk 0:01:32]} 22. Qxh6 {[%clk 0:02:42]}  Bf8 {[%clk 0:01:32]} 23. Qh4 {[%clk 0:02:33]}  c4 {[%clk 0:01:30]} 24. d4 {[%clk 0:02:32]}  Rb8 {[%clk 0:01:28]} 25. Bf3 {[%clk 0:02:27]}  Bg7 {[%clk 0:01:28]} 26. Kg2 {[%clk 0:02:26]}  Rb2 {[%clk 0:01:26]} 27. c3 {[%clk 0:02:25]}  Rc2 {[%clk 0:01:22]} 28. Re3 {[%clk 0:02:25]}  Qa5 {[%clk 0:01:20]} 29. Rh1 {[%clk 0:02:02]}  Rxc3 {[%clk 0:01:16]} 30. Qh7+ {[%clk 0:02:01]}  Kf8 {[%clk 0:01:16]} 31. Rh4 {[%clk 0:02:02]}  Rxe3 {[%clk 0:01:12]} 32. Bxe3 {[%clk 0:02:03]}  c3 {[%clk 0:01:03]} 33. Rf4 {[%clk 0:02:03]}  c2 {[%clk 0:00:53]} 34. Qxg6 {[%clk 0:02:02]}  Re7 {[%clk 0:00:48]} 35. Qxc2 {[%clk 0:02:02]}  Bc4 {[%clk 0:00:45]} 36. Qh7 {[%clk 0:02:01]}  Qe1 {[%clk 0:00:39]} 37. g6 {[%clk 0:01:53]}  Bf1+ {[%clk 0:00:35]} 38. Kh2 {[%clk 0:01:53]}  Be2 {[%clk 0:00:35]} 39. gxf7 {[%clk 0:01:46]}  Rxf7 {[%clk 0:00:26]} 40. Rxf7+ {[%clk 0:01:46]}  Kxf7 {[%clk 0:00:27]} 41. Qh5+ {[%clk 0:01:46]}  Kf8 {[%clk 0:00:26]} 42. Bxe2 {[%clk 0:01:47]}  Ke7 {[%clk 0:00:23]} 43. Bb5 {[%clk 0:01:39]}  Kd8 {[%clk 0:00:00]} 44. Bxd7 {[%clk 0:01:38]} 1-0


[Site "https://www.chess.com"]

[Event "Titled Tuesday Blitz June 20 Early 2023"]
[White "KorolDimitriy75"]
[Black "Renjith, Sravan"]
[BlackFideId "4306783"]
[WhiteElo "2423"]
[BlackElo "2104"]
[Result "0-1"]
[Round "1"]
[TimeControl "180+2"]
[Date "2023.06.20"]
[WhiteClock "0:00:03"]
[BlackClock "0:00:13"]
[Board "102"]

1. d4 {[%clk 0:02:59]}  Nf6 {[%clk 0:02:53]} 2. c4 {[%clk 0:02:58]}  e6 {[%clk 0:02:51]} 3. Nc3 {[%clk 0:02:59]}  d5 {[%clk 0:02:51]} 4. Bg5 {[%clk 0:02:58]}  Nbd7 {[%clk 0:02:49]} 5. cxd5 {[%clk 0:02:57]}  exd5 {[%clk 0:02:49]} 6. e3 {[%clk 0:02:58]}  Be7 {[%clk 0:02:49]} 7. Bd3 {[%clk 0:02:58]}  c6 {[%clk 0:02:48]} 8. Qc2 {[%clk 0:02:58]}  O-O {[%clk 0:02:47]} 9. Nge2 {[%clk 0:02:58]}  Re8 {[%clk 0:02:48]} 10. f3 {[%clk 0:02:57]}  Nf8 {[%clk 0:02:43]} 11. O-O {[%clk 0:02:57]}  h6 {[%clk 0:02:40]} 12. Bh4 {[%clk 0:02:57]}  Ne6 {[%clk 0:02:14]} 13. Rad1 {[%clk 0:02:55]}  Qd7 {[%clk 0:02:00]} 14. h3 {[%clk 0:02:40]}  Nc7 {[%clk 0:01:36]} 15. Bf2 {[%clk 0:02:21]}  Bf8 {[%clk 0:01:26]} 16. e4 {[%clk 0:02:20]}  dxe4 {[%clk 0:01:19]} 17. fxe4 {[%clk 0:02:21]}  Ne6 {[%clk 0:01:10]} 18. e5 {[%clk 0:02:11]}  Nd5 {[%clk 0:01:07]} 19. Nxd5 {[%clk 0:02:03]}  cxd5 {[%clk 0:01:04]} 20. Nc3 {[%clk 0:01:59]}  Nc7 {[%clk 0:01:00]} 21. Be3 {[%clk 0:01:37]}  b5 {[%clk 0:00:58]} 22. Rf3 {[%clk 0:01:13]}  b4 {[%clk 0:00:54]} 23. Ne2 {[%clk 0:01:04]}  Ba6 {[%clk 0:00:51]} 24. Rdf1 {[%clk 0:01:01]}  Bxd3 {[%clk 0:00:42]} 25. Qxd3 {[%clk 0:01:01]}  Re7 {[%clk 0:00:43]} 26. Ng3 {[%clk 0:00:57]}  Qb5 {[%clk 0:00:42]} 27. Qd2 {[%clk 0:00:56]}  Ne6 {[%clk 0:00:39]} 28. Nf5 {[%clk 0:00:56]}  Rc7 {[%clk 0:00:37]} 29. Rg3 {[%clk 0:00:51]}  Kh7 {[%clk 0:00:33]} 30. Qf2 {[%clk 0:00:46]}  Rac8 {[%clk 0:00:20]} 31. Nxh6 {[%clk 0:00:38]}  gxh6 {[%clk 0:00:20]} 32. Qf5+ {[%clk 0:00:38]}  Kh8 {[%clk 0:00:21]} 33. Qf6+ {[%clk 0:00:21]}  Bg7 {[%clk 0:00:21]} 34. Rxg7 {[%clk 0:00:20]}  Nxg7 {[%clk 0:00:22]} 35. Bxh6 {[%clk 0:00:20]}  Rg8 {[%clk 0:00:21]} 36. Qh4 {[%clk 0:00:15]}  Qd3 {[%clk 0:00:13]} 37. Rf6 {[%clk 0:00:12]}  Qh7 {[%clk 0:00:10]} 38. Bxg7+ {[%clk 0:00:08]}  Kxg7 {[%clk 0:00:11]} 39. Qg3+ {[%clk 0:00:06]}  Kf8 {[%clk 0:00:10]} 40. Qf4 {[%clk 0:00:07]}  Rc2 {[%clk 0:00:08]} 41. g4 {[%clk 0:00:06]}  Rg6 {[%clk 0:00:08]} 42. e6 {[%clk 0:00:05]}  Rxf6 {[%clk 0:00:08]} 43. Qxf6 {[%clk 0:00:06]}  Rc1+ {[%clk 0:00:09]} 44. Kh2 {[%clk 0:00:05]}  Qc2+ {[%clk 0:00:10]} 45. Kg3 {[%clk 0:00:05]}  Rg1+ {[%clk 0:00:10]} 46. Kh4 {[%clk 0:00:05]}  Qh7+ {[%clk 0:00:11]} 47. Kg5 {[%clk 0:00:04]}  Qg7+ {[%clk 0:00:12]} 48. Qxg7+ {[%clk 0:00:04]}  Kxg7 {[%clk 0:00:12]} 49. e7 {[%clk 0:00:03]}  Re1 {[%clk 0:00:13]} 0-1


[Site "https://www.chess.com"]

[Event "Titled Tuesday Blitz June 20 Early 2023"]
[White "Priasmoro, Novendra"]
[Black "Itkis, Boris"]
[WhiteFideId "7105029"]
[BlackFideId "1209167"]
[WhiteElo "2412"]
[BlackElo "2219"]
[Result "1-0"]
[Round "1"]
[TimeControl "180+2"]
[Date "2023.06.20"]
[WhiteClock "0:01:40"]
[BlackClock "0:01:02"]
[Board "103"]

1. e4 {[%clk 0:03:00]}  e6 {[%clk 0:03:00]} 2. d4 {[%clk 0:03:00]}  d5 {[%clk 0:03:00]} 3. Nc3 {[%clk 0:03:00]}  Bb4 {[%clk 0:03:01]} 4. e5 {[%clk 0:03:00]}  c5 {[%clk 0:03:01]} 5. Bd2 {[%clk 0:03:01]}  Ne7 {[%clk 0:02:57]} 6. Nb5 {[%clk 0:03:01]}  Bxd2+ {[%clk 0:02:56]} 7. Qxd2 {[%clk 0:03:02]}  O-O {[%clk 0:02:56]} 8. f4 {[%clk 0:03:01]}  cxd4 {[%clk 0:02:54]} 9. Nf3 {[%clk 0:03:01]}  Nbc6 {[%clk 0:02:48]} 10. O-O-O {[%clk 0:02:57]}  Bd7 {[%clk 0:02:43]} 11. Bd3 {[%clk 0:02:50]}  Rc8 {[%clk 0:02:29]} 12. Nd6 {[%clk 0:02:41]}  Rc7 {[%clk 0:02:29]} 13. Kb1 {[%clk 0:02:23]}  a6 {[%clk 0:02:28]} 14. g4 {[%clk 0:02:20]}  f6 {[%clk 0:02:28]} 15. Qf2 {[%clk 0:02:08]}  Ng6 {[%clk 0:02:11]} 16. Qg3 {[%clk 0:02:00]}  fxe5 {[%clk 0:02:08]} 17. Bxg6 {[%clk 0:01:57]}  hxg6 {[%clk 0:01:29]} 18. fxe5 {[%clk 0:01:40]}  Rxf3 {[%clk 0:01:19]} 19. Qxf3 {[%clk 0:01:41]}  Nxe5 {[%clk 0:01:19]} 20. Qf4 {[%clk 0:01:42]}  Qf6 {[%clk 0:01:08]} 21. Qxd4 {[%clk 0:01:41]}  Rc4 {[%clk 0:01:02]} 22. Nxc4 {[%clk 0:01:40]} 1-0


[Site "https://www.chess.com"]

[Event "Titled Tuesday Blitz June 20 Early 2023"]
[White "Lamard, Guillaume"]
[Black "Savitha Shri B"]
[WhiteFideId "600261"]
[BlackFideId "35061887"]
[WhiteElo "2413"]
[BlackElo "2172"]
[Result "0-1"]
[Round "1"]
[TimeControl "180+2"]
[Date "2023.06.20"]
[WhiteClock "0:00:11"]
[BlackClock "0:00:28"]
[Board "105"]

1. d4 {[%clk 0:02:59]}  Nf6 {[%clk 0:02:59]} 2. c4 {[%clk 0:02:59]}  g6 {[%clk 0:02:59]} 3. Nf3 {[%clk 0:02:59]}  Bg7 {[%clk 0:02:59]} 4. Nc3 {[%clk 0:02:59]}  O-O {[%clk 0:03:00]} 5. g3 {[%clk 0:02:58]}  d5 {[%clk 0:02:59]} 6. cxd5 {[%clk 0:02:55]}  Nxd5 {[%clk 0:03:00]} 7. Bg2 {[%clk 0:02:55]}  c5 {[%clk 0:02:54]} 8. O-O {[%clk 0:02:47]}  cxd4 {[%clk 0:02:50]} 9. Nxd4 {[%clk 0:02:46]}  Nxc3 {[%clk 0:02:49]} 10. bxc3 {[%clk 0:02:47]}  Nd7 {[%clk 0:02:44]} 11. Ba3 {[%clk 0:02:44]}  Ne5 {[%clk 0:02:36]} 12. Qb3 {[%clk 0:02:40]}  a6 {[%clk 0:02:14]} 13. Rfd1 {[%clk 0:02:39]}  Qc7 {[%clk 0:02:14]} 14. Rac1 {[%clk 0:02:14]}  Bg4 {[%clk 0:02:02]} 15. h3 {[%clk 0:02:12]}  Bc8 {[%clk 0:02:00]} 16. c4 {[%clk 0:02:12]}  Rb8 {[%clk 0:01:55]} 17. Qb4 {[%clk 0:01:53]}  Bf6 {[%clk 0:01:45]} 18. c5 {[%clk 0:01:46]}  Bd7 {[%clk 0:01:37]} 19. Qb6 {[%clk 0:01:46]}  Rfc8 {[%clk 0:01:33]} 20. Nb3 {[%clk 0:01:40]}  Bb5 {[%clk 0:01:24]} 21. Qxc7 {[%clk 0:01:19]}  Rxc7 {[%clk 0:01:25]} 22. Rc2 {[%clk 0:01:19]}  Nc4 {[%clk 0:01:22]} 23. Bb4 {[%clk 0:01:19]}  Nb2 {[%clk 0:00:58]} 24. Rb1 {[%clk 0:01:09]}  Na4 {[%clk 0:00:57]} 25. Rbc1 {[%clk 0:01:04]}  Rbc8 {[%clk 0:00:53]} 26. Na5 {[%clk 0:01:03]}  b6 {[%clk 0:00:49]} 27. Nb3 {[%clk 0:00:54]}  bxc5 {[%clk 0:00:48]} 28. Ba5 {[%clk 0:00:54]}  Rd7 {[%clk 0:00:48]} 29. Nd2 {[%clk 0:00:29]}  Bxe2 {[%clk 0:00:39]} 30. Ne4 {[%clk 0:00:29]}  Bd3 {[%clk 0:00:39]} 31. Nxf6+ {[%clk 0:00:29]}  exf6 {[%clk 0:00:40]} 32. Rd2 {[%clk 0:00:29]}  c4 {[%clk 0:00:37]} 33. Bf1 {[%clk 0:00:27]}  Re8 {[%clk 0:00:34]} 34. Bg2 {[%clk 0:00:23]}  Re2 {[%clk 0:00:32]} 35. Rxe2 {[%clk 0:00:20]}  Bxe2 {[%clk 0:00:32]} 36. Bc6 {[%clk 0:00:20]}  Rd1+ {[%clk 0:00:29]} 37. Rxd1 {[%clk 0:00:20]}  Bxd1 {[%clk 0:00:30]} 38. Kf1 {[%clk 0:00:20]}  c3 {[%clk 0:00:29]} 39. Ke1 {[%clk 0:00:20]}  c2 {[%clk 0:00:28]} 40. Kd2 {[%clk 0:00:20]}  Nc5 {[%clk 0:00:29]} 41. Bc3 {[%clk 0:00:17]}  Nd3 {[%clk 0:00:29]} 42. Bb2 {[%clk 0:00:13]}  Nxb2 {[%clk 0:00:29]} 43. Be4 {[%clk 0:00:13]}  Nc4+ {[%clk 0:00:26]} 44. Kc1 {[%clk 0:00:14]}  Na3 {[%clk 0:00:27]} 45. Bd3 {[%clk 0:00:14]}  a5 {[%clk 0:00:28]} 46. Kb2 {[%clk 0:00:11]}  f5 {[%clk 0:00:28]} 0-1


[Site "https://www.chess.com"]

[Event "Titled Tuesday Blitz June 20 Early 2023"]
[White "Perez Rodriguez, Jennifer"]
[Black "Starozhilov, Leonid"]
[WhiteFideId "3507831"]
[BlackFideId "14106752"]
[WhiteElo "2116"]
[BlackElo "2352"]
[Result "1-0"]
[Round "1"]
[TimeControl "180+2"]
[Date "2023.06.20"]
[WhiteClock "0:00:13"]
[BlackClock "0:00:00"]
[Board "106"]

1. e4 {[%clk 0:03:00]}  g6 {[%clk 0:02:59]} 2. d4 {[%clk 0:03:00]}  Bg7 {[%clk 0:02:59]} 3. Nc3 {[%clk 0:02:59]}  d6 {[%clk 0:02:59]} 4. Be3 {[%clk 0:02:58]}  a6 {[%clk 0:02:58]} 5. a4 {[%clk 0:02:58]}  Nc6 {[%clk 0:02:58]} 6. Nf3 {[%clk 0:02:57]}  Nf6 {[%clk 0:02:58]} 7. h3 {[%clk 0:02:57]}  O-O {[%clk 0:02:58]} 8. Qd2 {[%clk 0:02:58]}  e5 {[%clk 0:02:57]} 9. Bc4 {[%clk 0:02:56]}  exd4 {[%clk 0:02:49]} 10. Bxd4 {[%clk 0:02:52]}  Nxd4 {[%clk 0:02:45]} 11. Nxd4 {[%clk 0:02:50]}  Nxe4 {[%clk 0:02:43]} 12. Nxe4 {[%clk 0:02:48]}  d5 {[%clk 0:02:42]} 13. O-O-O {[%clk 0:02:17]}  dxc4 {[%clk 0:02:36]} 14. Rhe1 {[%clk 0:02:14]}  b5 {[%clk 0:02:17]} 15. Kb1 {[%clk 0:02:06]}  bxa4 {[%clk 0:02:12]} 16. Qb4 {[%clk 0:01:57]}  Qh4 {[%clk 0:01:52]} 17. Qxa4 {[%clk 0:01:47]}  Bb7 {[%clk 0:01:46]} 18. Nc5 {[%clk 0:01:24]}  Bxg2 {[%clk 0:01:35]} 19. Qxc4 {[%clk 0:01:21]}  Rab8 {[%clk 0:01:12]} 20. Nd7 {[%clk 0:01:18]}  c5 {[%clk 0:00:53]} 21. Nxb8 {[%clk 0:01:10]}  cxd4 {[%clk 0:00:43]} 22. Nc6 {[%clk 0:01:06]}  Qxh3 {[%clk 0:00:32]} 23. Nxd4 {[%clk 0:01:00]}  Qh5 {[%clk 0:00:23]} 24. Nb3 {[%clk 0:00:57]}  a5 {[%clk 0:00:20]} 25. Rd7 {[%clk 0:00:55]}  Bh3 {[%clk 0:00:17]} 26. Rc7 {[%clk 0:00:51]}  Be6 {[%clk 0:00:16]} 27. Qc5 {[%clk 0:00:37]}  Qf3 {[%clk 0:00:13]} 28. Nd4 {[%clk 0:00:35]}  Bxd4 {[%clk 0:00:10]} 29. Qxd4 {[%clk 0:00:35]}  Bf5 {[%clk 0:00:09]} 30. Ree7 {[%clk 0:00:27]}  a4 {[%clk 0:00:07]} 31. Qxa4 {[%clk 0:00:21]}  Qd1+ {[%clk 0:00:04]} 32. Ka2 {[%clk 0:00:21]}  Qd5+ {[%clk 0:00:05]} 33. Qb3 {[%clk 0:00:21]}  Qa5+ {[%clk 0:00:03]} 34. Kb1 {[%clk 0:00:19]}  Be6 {[%clk 0:00:02]} 35. Rxe6 {[%clk 0:00:17]}  fxe6 {[%clk 0:00:03]} 36. Qxe6+ {[%clk 0:00:17]}  Kh8 {[%clk 0:00:00]} 37. Qe7 {[%clk 0:00:13]} 1-0


[Site "https://www.chess.com"]

[Event "Titled Tuesday Blitz June 20 Early 2023"]
[White "Srihari L R"]
[Black "Herzog2012"]
[WhiteFideId "46617116"]
[WhiteElo "2334"]
[BlackElo "2414"]
[Result "1-0"]
[Round "1"]
[TimeControl "180+2"]
[Date "2023.06.20"]
[WhiteClock "0:00:13"]
[BlackClock "0:00:00"]
[Board "107"]

1. c4 {[%clk 0:02:52]}  e5 {[%clk 0:02:59]} 2. Nc3 {[%clk 0:02:50]}  Nf6 {[%clk 0:03:00]} 3. Nf3 {[%clk 0:02:43]}  Nc6 {[%clk 0:02:59]} 4. e3 {[%clk 0:02:42]}  Bb4 {[%clk 0:02:59]} 5. Qc2 {[%clk 0:02:40]}  Bxc3 {[%clk 0:02:58]} 6. Qxc3 {[%clk 0:02:40]}  Qe7 {[%clk 0:02:58]} 7. d4 {[%clk 0:02:40]}  d6 {[%clk 0:02:41]} 8. Be2 {[%clk 0:02:16]}  O-O {[%clk 0:02:35]} 9. O-O {[%clk 0:02:14]}  exd4 {[%clk 0:02:33]} 10. Nxd4 {[%clk 0:02:13]}  Ne5 {[%clk 0:02:33]} 11. b3 {[%clk 0:02:08]}  Bg4 {[%clk 0:02:04]} 12. f3 {[%clk 0:02:04]}  Bh5 {[%clk 0:01:58]} 13. Bb2 {[%clk 0:01:57]}  Bg6 {[%clk 0:01:57]} 14. Rae1 {[%clk 0:01:51]}  h6 {[%clk 0:01:48]} 15. e4 {[%clk 0:01:38]}  a6 {[%clk 0:01:24]} 16. a4 {[%clk 0:01:33]}  Rfe8 {[%clk 0:01:01]} 17. Rd1 {[%clk 0:01:26]}  Qf8 {[%clk 0:00:45]} 18. Rfe1 {[%clk 0:01:24]}  Nh5 {[%clk 0:00:30]} 19. Bf1 {[%clk 0:01:21]}  Nf4 {[%clk 0:00:13]} 20. Qd2 {[%clk 0:01:17]}  Ne6 {[%clk 0:00:09]} 21. Nxe6 {[%clk 0:01:15]}  fxe6 {[%clk 0:00:10]} 22. f4 {[%clk 0:01:05]}  Nd7 {[%clk 0:00:08]} 23. Bd3 {[%clk 0:01:05]}  Nc5 {[%clk 0:00:07]} 24. Bc2 {[%clk 0:01:05]}  Rad8 {[%clk 0:00:04]} 25. b4 {[%clk 0:01:05]}  Nd7 {[%clk 0:00:05]} 26. a5 {[%clk 0:01:03]}  Nf6 {[%clk 0:00:03]} 27. f5 {[%clk 0:00:57]}  exf5 {[%clk 0:00:03]} 28. exf5 {[%clk 0:00:58]}  Bh5 {[%clk 0:00:03]} 29. Rc1 {[%clk 0:00:54]}  Rxe1+ {[%clk 0:00:03]} 30. Rxe1 {[%clk 0:00:55]}  Re8 {[%clk 0:00:03]} 31. h3 {[%clk 0:00:51]}  Rxe1+ {[%clk 0:00:02]} 32. Qxe1 {[%clk 0:00:51]}  Qf7 {[%clk 0:00:02]} 33. Qh4 {[%clk 0:00:45]}  Kf8 {[%clk 0:00:01]} 34. Bxf6 {[%clk 0:00:43]}  gxf6 {[%clk 0:00:02]} 35. Bd3 {[%clk 0:00:35]}  Qe8 {[%clk 0:00:03]} 36. Kf2 {[%clk 0:00:32]}  Kg7 {[%clk 0:00:02]} 37. Qg3+ {[%clk 0:00:23]}  Kf8 {[%clk 0:00:02]} 38. Qf4 {[%clk 0:00:20]}  Kg7 {[%clk 0:00:02]} 39. Be4 {[%clk 0:00:13]}  Qe5 {[%clk 0:00:02]} 40. Qxe5 {[%clk 0:00:13]}  fxe5 {[%clk 0:00:00]} 41. Bxb7 {[%clk 0:00:13]} 1-0


[Site "https://www.chess.com"]

[Event "Titled Tuesday Blitz June 20 Early 2023"]
[White "Gomes, Luiz Alexandre de Souza"]
[Black "Amilal Munkhdalai"]
[WhiteFideId "2102790"]
[BlackFideId "4903250"]
[WhiteElo "2413"]
[BlackElo "2293"]
[Result "0-1"]
[Round "1"]
[TimeControl "180+2"]
[Date "2023.06.20"]
[WhiteClock "0:00:00"]
[BlackClock "0:00:21"]
[Board "108"]

1. e4 {[%clk 0:02:57]}  c5 {[%clk 0:02:59]} 2. Nf3 {[%clk 0:02:56]}  Nc6 {[%clk 0:03:00]} 3. Bb5 {[%clk 0:02:56]}  e6 {[%clk 0:02:59]} 4. O-O {[%clk 0:02:55]}  Nge7 {[%clk 0:02:58]} 5. Re1 {[%clk 0:02:54]}  a6 {[%clk 0:02:58]} 6. Bf1 {[%clk 0:02:54]}  Qc7 {[%clk 0:02:50]} 7. d3 {[%clk 0:02:54]}  b5 {[%clk 0:02:50]} 8. Nbd2 {[%clk 0:02:54]}  Bb7 {[%clk 0:02:50]} 9. g3 {[%clk 0:02:54]}  d5 {[%clk 0:02:50]} 10. Bg2 {[%clk 0:02:54]}  d4 {[%clk 0:02:49]} 11. Nf1 {[%clk 0:02:39]}  e5 {[%clk 0:02:45]} 12. Nh4 {[%clk 0:02:38]}  g6 {[%clk 0:02:45]} 13. f4 {[%clk 0:02:30]}  Bg7 {[%clk 0:02:44]} 14. f5 {[%clk 0:02:30]}  f6 {[%clk 0:02:37]} 15. Bd2 {[%clk 0:02:24]}  g5 {[%clk 0:02:34]} 16. Nf3 {[%clk 0:02:24]}  h5 {[%clk 0:02:34]} 17. a4 {[%clk 0:02:17]}  b4 {[%clk 0:02:33]} 18. b3 {[%clk 0:02:15]}  g4 {[%clk 0:02:29]} 19. Nh4 {[%clk 0:02:14]}  Bh6 {[%clk 0:02:29]} 20. Bxh6 {[%clk 0:02:13]}  Rxh6 {[%clk 0:02:29]} 21. Nd2 {[%clk 0:02:12]}  Rh8 {[%clk 0:02:25]} 22. Nc4 {[%clk 0:02:12]}  O-O-O {[%clk 0:02:20]} 23. a5 {[%clk 0:02:11]}  Kb8 {[%clk 0:02:18]} 24. Qd2 {[%clk 0:02:08]}  Na7 {[%clk 0:02:17]} 25. Rf1 {[%clk 0:02:00]}  Rdg8 {[%clk 0:02:12]} 26. Nb6 {[%clk 0:01:56]}  Nac8 {[%clk 0:02:00]} 27. Nc4 {[%clk 0:01:53]}  Bc6 {[%clk 0:01:58]} 28. Rf2 {[%clk 0:01:44]}  Bb5 {[%clk 0:01:58]} 29. Bf1 {[%clk 0:01:41]}  Nc6 {[%clk 0:01:52]} 30. Ng6 {[%clk 0:01:38]}  Rh7 {[%clk 0:01:52]} 31. Qc1 {[%clk 0:01:22]}  Bxc4 {[%clk 0:01:51]} 32. dxc4 {[%clk 0:01:21]}  Nxa5 {[%clk 0:01:35]} 33. Bd3 {[%clk 0:01:20]}  Kb7 {[%clk 0:01:34]} 34. Ra4 {[%clk 0:01:18]}  Nc6 {[%clk 0:01:33]} 35. Qd2 {[%clk 0:01:03]}  a5 {[%clk 0:01:33]} 36. Rf1 {[%clk 0:01:03]}  Nb6 {[%clk 0:01:32]} 37. Raa1 {[%clk 0:01:03]}  Ra8 {[%clk 0:01:30]} 38. Kg2 {[%clk 0:00:58]}  Qg7 {[%clk 0:01:29]} 39. Rh1 {[%clk 0:00:48]}  a4 {[%clk 0:01:24]} 40. bxa4 {[%clk 0:00:47]}  Rxa4 {[%clk 0:01:24]} 41. Rxa4 {[%clk 0:00:47]}  Nxa4 {[%clk 0:01:24]} 42. Ra1 {[%clk 0:00:47]}  Nc3 {[%clk 0:01:23]} 43. Qe1 {[%clk 0:00:41]}  Qh6 {[%clk 0:01:20]} 44. Qc1 {[%clk 0:00:37]}  Qxc1 {[%clk 0:01:17]} 45. Rxc1 {[%clk 0:00:38]}  Kb6 {[%clk 0:01:17]} 46. Ra1 {[%clk 0:00:37]}  Ra7 {[%clk 0:01:17]} 47. Rxa7 {[%clk 0:00:36]}  Kxa7 {[%clk 0:01:16]} 48. h3 {[%clk 0:00:37]}  Kb6 {[%clk 0:01:12]} 49. hxg4 {[%clk 0:00:37]}  hxg4 {[%clk 0:01:11]} 50. Kf2 {[%clk 0:00:35]}  Nd8 {[%clk 0:01:03]} 51. Nf8 {[%clk 0:00:32]}  Nb7 {[%clk 0:00:53]} 52. Nd7+ {[%clk 0:00:32]}  Kc6 {[%clk 0:00:51]} 53. Nxf6 {[%clk 0:00:33]}  Nd6 {[%clk 0:00:51]} 54. Nxg4 {[%clk 0:00:34]}  Ndxe4+ {[%clk 0:00:51]} 55. Bxe4+ {[%clk 0:00:34]}  Nxe4+ {[%clk 0:00:51]} 56. Ke2 {[%clk 0:00:32]}  Nxg3+ {[%clk 0:00:51]} 57. Kd2 {[%clk 0:00:31]}  Kd6 {[%clk 0:00:35]} 58. f6 {[%clk 0:00:31]}  Ne4+ {[%clk 0:00:35]} 59. Kd3 {[%clk 0:00:30]}  Ng5 {[%clk 0:00:34]} 60. Nf2 {[%clk 0:00:29]}  Ke6 {[%clk 0:00:34]} 61. Ke2 {[%clk 0:00:17]}  Kxf6 {[%clk 0:00:33]} 62. Nd3 {[%clk 0:00:17]}  Ne6 {[%clk 0:00:32]} 63. Kf3 {[%clk 0:00:18]}  Kf5 {[%clk 0:00:33]} 64. Nf2 {[%clk 0:00:14]}  Ng5+ {[%clk 0:00:33]} 65. Ke2 {[%clk 0:00:14]}  e4 {[%clk 0:00:33]} 66. Nd1 {[%clk 0:00:12]}  Kf4 {[%clk 0:00:33]} 67. Nb2 {[%clk 0:00:12]}  Ne6 {[%clk 0:00:27]} 68. Na4 {[%clk 0:00:12]}  e3 {[%clk 0:00:26]} 69. Nb6 {[%clk 0:00:11]}  Ke4 {[%clk 0:00:26]} 70. Na4 {[%clk 0:00:10]}  b3 {[%clk 0:00:23]} 71. cxb3 {[%clk 0:00:03]}  d3+ {[%clk 0:00:24]} 72. Kd1 {[%clk 0:00:04]}  Kd4 {[%clk 0:00:22]} 73. Kc1 {[%clk 0:00:00]}  Nf4 {[%clk 0:00:21]} 0-1


[Site "https://www.chess.com"]